bitfinex-derivatives/quotes_BTCF0:USTF0_20250729
["timestamp","ask_amount","ask_price","bid_price","bid_amount"]
[1753827208050,0.7368224,117540.0,117530.0,1.12224031]
[1753827208250,0.7368224,117540.0,117530.0,1.12324031]
[1753827209759,0.7368224,117540.0,117530.0,1.16325]
[1753827212056,0.7368224,117540.0,117530.0,1.11679]
[1753827212261,0.97337241,117540.0,117530.0,0.83842]
[1753827212458,0.7368224,117540.0,117530.0,0.91578]
[1753827212655,0.7368224,117540.0,117530.0,1.08642]
[1753827213657,0.7368224,117540.0,117530.0,1.13288]
[1753827215259,0.7368224,117540.0,117530.0,1.16177]
[1753827217556,0.7368224,117540.0,117530.0,1.39832001]
[1753827218563,0.7368224,117540.0,117530.0,1.16177]
[1753827219364,0.2901924,117540.0,117530.0,1.16177]
[1753827219564,0.3369624,117540.0,117530.0,1.16177]
[1753827219765,0.3702024,117540.0,117530.0,1.39832001]
[1753827219967,0.6681824,117540.0,117530.0,1.39832001]
[1753827220263,0.7368224,117540.0,117530.0,1.39832001]
[1753827220461,0.3234324,117540.0,117530.0,1.39832001]
[1753827220854,0.3702024,117540.0,117530.0,1.39832001]
[1753827221059,0.2901924,117540.0,117530.0,1.39832001]
[1753827221258,0.2901924,117540.0,117530.0,1.56852651]
[1753827221468,0.2901924,117540.0,117530.0,2.72023723]
[1753827223470,0.2901924,117540.0,117530.0,2.48368722]
[1753827223670,0.2901924,117540.0,117530.0,2.72023723]
[1753827227665,0.65356241,117540.0,117530.0,0.59752072]
[1753827227870,0.65356241,117540.0,117530.0,1.04009]
[1753827227871,0.88098241,117540.0,117530.0,1.04009]
[1753827228066,0.95088241,117540.0,117530.0,1.10781]
[1753827228468,0.7143324,117540.0,117530.0,1.10781]
[1753827228673,0.7143324,117540.0,117530.0,1.15495]
[1753827237582,0.7143324,117540.0,117530.0,0.39485]
[1753827237770,0.7143324,117540.0,117530.0,1.10513]
[1753827238282,0.7143324,117540.0,117530.0,1.15227]
[1753827240780,0.7143324,117540.0,117530.0,1.30398072]
[1753827244982,0.7143324,117540.0,117530.0,1.30222072]
[1753827246783,0.2901924,117540.0,117530.0,1.53877073]
[1753827247174,0.3352524,117540.0,117530.0,1.70897713]
[1753827247480,0.3352524,117540.0,117530.0,1.53877073]
[1753827247675,0.3352524,117540.0,117530.0,1.70897713]
[1753827248381,0.2901924,117540.0,117530.0,2.53877073]
[1753827248681,0.2901924,117540.0,117530.0,2.70897713]
[1753827249281,0.5037324,117540.0,117530.0,2.70897713]
[1753827249783,0.5037324,117540.0,117530.0,2.53877073]
[1753827250483,0.5037324,117540.0,117530.0,1.83025073]
[1753827250682,0.5037324,117540.0,117530.0,2.53729073]
[1753827251084,0.5037324,117540.0,117530.0,2.70749713]
[1753827256083,0.5037324,117540.0,117530.0,2.53729073]
[1753827256687,0.5037324,117540.0,117530.0,2.47094712]
[1753827258187,0.3671324,117540.0,117530.0,2.47094712]
[1753827258387,0.2901924,117540.0,117530.0,2.47094712]
[1753827258686,0.2901924,117540.0,117530.0,2.70749713]
[1753827259182,0.3399524,117540.0,117530.0,2.70749713]
[1753827260588,0.3399524,117540.0,117530.0,2.30074072]
[1753827260781,0.3715624,117540.0,117530.0,2.30074072]
[1753827261180,0.5056024,117540.0,117530.0,2.30074072]
[1753827261689,0.5056024,117540.0,117530.0,2.47094712]
[1753827264891,0.3715624,117540.0,117530.0,2.47094712]
[1753827265690,0.3715624,117540.0,117530.0,2.70749713]
[1753827268087,0.3715624,117540.0,117530.0,2.14903]
[1753827268293,0.3715624,117540.0,117530.0,2.30074072]
[1753827270291,0.5056024,117540.0,117530.0,2.30074072]
[1753827271493,0.6249724,117540.0,117530.0,2.30074072]
[1753827274099,0.7157624,117540.0,117530.0,2.30074072]
[1753827274901,0.98207121,117540.0,117530.0,2.56704953]
[1753827277604,0.98207121,117540.0,117530.0,2.30074072]
[1753827277802,0.98207121,117540.0,117530.0,2.56704953]
[1753827279115,0.7157624,117540.0,117530.0,2.56704953]
[1753827279413,0.98207121,117540.0,117530.0,2.56704953]
[1753827280914,0.98207121,117540.0,117530.0,2.73725583]
[1753827281414,0.7157624,117540.0,117530.0,2.73725583]
[1753827281617,0.3715624,117540.0,117530.0,2.73725583]
[1753827282712,0.3715624,117540.0,117530.0,2.58554511]
[1753827282918,0.3715624,117540.0,117530.0,2.73725583]
[1753827283918,0.63787121,117540.0,117530.0,2.73725583]
[1753827284516,0.3715624,117540.0,117530.0,2.73725583]
[1753827286112,0.3715624,117540.0,117530.0,2.56704953]
[1753827286410,0.3715624,117540.0,117530.0,1.56704953]
[1753827287113,0.63787121,117540.0,117530.0,1.56704953]
[1753827288517,0.3715624,117540.0,117530.0,1.56704953]
[1753827288720,0.5122824,117540.0,117530.0,1.56704953]
[1753827289913,0.2901924,117540.0,117530.0,2.73725583]
[1753827300722,0.2901924,117540.0,117530.0,2.58554511]
[1753827301719,0.2901924,117540.0,117530.0,2.73725583]
[1753827303626,0.2901924,117540.0,117530.0,3.00356464]
[1753827314734,0.2901924,117540.0,117530.0,2.85185392]
[1753827315735,0.2901924,117540.0,117530.0,3.00356464]
[1753827324344,0.2901924,117540.0,117530.0,2.00356464]
[1753827324638,0.12,117540.0,117530.0,3.00356464]
[1753827324839,0.12,117540.0,117530.0,2.98944464]
[1753827332248,0.2127333,117550.0,117540.0,0.3403818]
[1753827332554,0.3227333,117550.0,117540.0,1.96785014]
[1753827332845,0.3227333,117550.0,117540.0,2.96785014]
[1753827333445,0.3237333,117550.0,117540.0,2.96785014]
[1753827333947,0.3257333,117550.0,117540.0,2.96785014]
[1753827334147,0.3247333,117550.0,117540.0,2.96785014]
[1753827334545,0.2801773,117550.0,117540.0,2.96785014]
[1753827339237,0.11,117550.0,117540.0,2.96785014]
[1753827339443,0.2801774,117550.0,117540.0,2.96785014]
[1753827340445,0.3294074,117550.0,117540.0,2.27621014]
[1753827340647,0.3294074,117550.0,117540.0,2.96713014]
[1753827340953,0.3597174,117550.0,117540.0,2.96713014]
[1753827344457,0.2801774,117550.0,117540.0,2.96713014]
[1753827346961,0.3254374,117550.0,117540.0,2.96713014]
[1753827348262,0.2801774,117550.0,117540.0,2.81541942]
[1753827348562,0.2801774,117550.0,117540.0,2.96713014]
[1753827353359,0.2801774,117550.0,117540.0,0.69589252]
[1753827353559,0.7022674,117550.0,117540.0,1.64859133]
[1753827353764,0.7022674,117550.0,117540.0,1.91490014]
[1753827354065,0.7022674,117550.0,117540.0,1.96460014]
[1753827355371,0.7042674,117550.0,117540.0,1.96460014]
[1753827357075,0.7052674,117550.0,117540.0,1.96460014]
[1753827358779,0.7052674,117550.0,117540.0,1.81288942]
[1753827358968,0.7052674,117550.0,117540.0,1.96460014]
[1753827362274,0.2831774,117550.0,117540.0,1.96460014]
[1753827363081,0.2831774,117550.0,117540.0,1.43198252]
[1753827363379,0.2831774,117550.0,117540.0,1.96460014]
[1753827363680,0.2821774,117550.0,117540.0,1.96460014]
[1753827363873,0.2801774,117550.0,117540.0,1.96460014]
[1753827364069,0.3254374,117550.0,117540.0,1.96460014]
[1753827365179,0.3254374,117550.0,117540.0,1.81288942]
[1753827365368,0.3254374,117550.0,117540.0,1.96460014]
[1753827368181,0.3254374,117550.0,117540.0,1.81288942]
[1753827368482,0.3254374,117550.0,117540.0,1.96460014]
[1753827370986,0.3254374,117550.0,117540.0,1.81288942]
[1753827371188,0.3254374,117550.0,117540.0,1.96460014]
[1753827371382,0.2801774,117550.0,117540.0,1.96460014]
[1753827373482,0.3254374,117550.0,117540.0,1.96460014]
[1753827378291,0.3254374,117550.0,117540.0,1.81288942]
[1753827378490,0.3254374,117550.0,117540.0,1.96460014]
[1753827379087,0.2801774,117550.0,117540.0,1.96460014]
[1753827387896,0.92348257,117580.0,117570.0,0.5373084]
[1753827388193,0.85348257,117580.0,117570.0,1.80967602]
[1753827389001,0.85748257,117580.0,117570.0,1.80967602]
[1753827390503,0.85648257,117580.0,117570.0,1.80967602]
[1753827390802,0.85748257,117580.0,117570.0,1.80967602]
[1753827392198,0.78793257,117580.0,117570.0,1.82244921]
[1753827392394,0.56236257,117580.0,117570.0,1.97415993]
[1753827392799,0.69500257,117580.0,117570.0,1.97415993]
[1753827393000,0.76455257,117580.0,117570.0,1.97415993]
[1753827393700,0.76355257,117580.0,117570.0,1.97415993]
[1753827394402,0.85648257,117580.0,117570.0,1.97415993]
[1753827394595,0.5446395,117580.0,117570.0,1.97415993]
[1753827394800,0.4047595,117580.0,117570.0,2.97415993]
[1753827395796,0.3256795,117580.0,117570.0,2.97415993]
[1753827397104,0.3714795,117580.0,117570.0,2.97415993]
[1753827398011,0.4047595,117580.0,117570.0,2.97415993]
[1753827402713,0.4047595,117580.0,117570.0,2.96138674]
[1753827403204,0.5373995,117580.0,117570.0,2.96138674]
[1753827404510,0.5843495,117580.0,117570.0,2.96138674]
[1753827404709,0.7467495,117580.0,117570.0,2.96138674]
[1753827406613,0.7467495,117580.0,117570.0,2.80967602]
[1753827406808,0.6772795,117580.0,117570.0,2.96138674]
[1753827408611,0.6772795,117580.0,117570.0,2.80967602]
[1753827410412,0.6772795,117580.0,117570.0,2.2770584]
[1753827410607,0.7467495,117580.0,117570.0,2.80967602]
[1753827412116,0.7457495,117580.0,117570.0,2.80967602]
[1753827412314,0.7437495,117580.0,117570.0,2.80967602]
[1753827413024,0.7467495,117580.0,117570.0,2.80967602]
[1753827413617,0.7467495,117580.0,117570.0,2.96138674]
[1753827414521,0.6772795,117580.0,117570.0,2.96138674]
[1753827416820,0.6772795,117580.0,117570.0,2.80967602]
[1753827417022,0.6772795,117580.0,117570.0,2.96138674]
[1753827417521,0.4047595,117580.0,117570.0,2.96138674]
[1753827418623,0.4047595,117580.0,117570.0,2.80967602]
[1753827428732,0.4047595,117580.0,117570.0,2.96138674]
[1753827431235,0.2831445,117580.0,117570.0,2.96138674]
[1753827431636,0.2831341,117580.0,117570.0,2.96138674]
[1753827431931,0.00532508,117580.0,117570.0,3.22769555]
[1753827432439,0.5174642,117610.0,117600.0,0.5850252]
[1753827432640,0.3644442,117610.0,117600.0,1.80752282]
[1753827432832,0.3326242,117610.0,117600.0,1.95923354]
[1753827434937,0.3336242,117610.0,117600.0,1.95923354]
[1753827435136,0.3824242,117610.0,117600.0,1.9710993]
[1753827437440,0.3336242,117610.0,117600.0,1.9710993]
[1753827437648,0.121,117610.0,117600.0,1.9710993]
[1753827438844,0.121,117610.0,117600.0,2.9710993]
[1753827439639,0.121,117610.0,117600.0,3.23740811]
[1753827439842,0.121,117610.0,117600.0,2.9710993]
[1753827442350,0.121,117610.0,117600.0,2.81938858]
[1753827442550,0.121,117610.0,117600.0,2.9710993]
[1753827442851,0.2910907,117610.0,117600.0,2.9710993]
[1753827444353,0.2910907,117610.0,117600.0,1.9710993]
[1753827444550,0.2910907,117610.0,117600.0,2.9710993]
[1753827445959,0.121,117610.0,117600.0,2.9710993]
[1753827456860,0.121,117610.0,117600.0,2.81938858]
[1753827457664,0.121,117610.0,117600.0,2.9710993]
[1753827461969,0.121,117610.0,117600.0,1.9710993]
[1753827462167,0.121,117610.0,117600.0,2.9710993]
[1753827466169,0.291091,117610.0,117600.0,2.2812193]
[1753827466467,0.96202981,117610.0,117600.0,0.34595096]
[1753827466676,0.96202981,117610.0,117600.0,1.48289401]
[1753827466969,0.695721,117610.0,117600.0,1.48289401]
[1753827467158,0.695721,117610.0,117600.0,1.74920282]
[1753827467364,0.695721,117610.0,117600.0,1.53046401]
[1753827467667,0.695721,117610.0,117600.0,1.79677282]
[1753827477682,0.695721,117610.0,117600.0,1.2641552]
[1753827477871,0.695721,117610.0,117600.0,1.79677282]
[1753827478764,0.291091,117610.0,117600.0,1.79677282]
[1753827479378,0.336541,117610.0,117600.0,1.79677282]
[1753827479580,0.367901,117610.0,117600.0,1.79677282]
[1753827479774,0.488481,117610.0,117600.0,1.79677282]
[1753827481479,0.489481,117610.0,117600.0,1.79677282]
[1753827481679,0.610131,117610.0,117600.0,1.94848354]
[1753827481875,0.122,117610.0,117600.0,2.79677282]
[1753827482075,0.122,117610.0,117600.0,2.94848354]
[1753827483582,0.121,117610.0,117600.0,2.94848354]
[1753827483982,0.12,117610.0,117600.0,3.055366]
[1753827484386,0.12,117610.0,117600.0,3.056366]
[1753827484586,0.12,117610.0,117600.0,3.057366]
[1753827485784,0.290091,117610.0,117600.0,3.057366]
[1753827486582,0.335541,117610.0,117600.0,3.057366]
[1753827486785,0.335541,117610.0,117600.0,2.99743198]
[1753827486976,0.335541,117610.0,117600.0,2.99643198]
[1753827487181,0.335541,117610.0,117600.0,2.99543198]
[1753827488587,0.290091,117610.0,117600.0,2.99543198]
[1753827489586,0.290091,117610.0,117600.0,2.88854952]
[1753827490087,0.12,117610.0,117600.0,2.88854952]
[1753827492790,0.12,117610.0,117600.0,2.99543198]
[1753827493578,0.12,117610.0,117600.0,2.88854952]
[1753827504091,0.12,117610.0,117600.0,1.88854952]
[1753827504394,0.12,117610.0,117600.0,2.88854952]
[1753827504690,0.12,117610.0,117600.0,2.7368388]
[1753827505784,0.338531,117610.0,117600.0,2.88854952]
[1753827505988,0.370261,117610.0,117600.0,2.88854952]
[1753827506288,0.686681,117610.0,117600.0,1.65128772]
[1753827506898,0.686681,117610.0,117600.0,1.94776004]
[1753827507799,0.686681,117610.0,117600.0,1.94676004]
[1753827507997,0.686681,117610.0,117600.0,1.94776004]
[1753827508298,0.687681,117610.0,117600.0,1.94776004]
[1753827508797,0.687681,117610.0,117600.0,1.70809004]
[1753827508993,0.688681,117610.0,117600.0,1.78149004]
[1753827509498,0.688681,117610.0,117600.0,1.14302004]
[1753827509691,0.688681,117610.0,117600.0,1.83090004]
[1753827510397,0.688681,117610.0,117600.0,1.67918932]
[1753827511197,0.688681,117610.0,117600.0,1.10580932]
[1753827511396,0.688681,117610.0,117600.0,1.79368932]
[1753827516298,0.688681,117610.0,117600.0,1.10580932]
[1753827516497,0.688681,117610.0,117600.0,1.24512226]
[1753827516697,0.688681,117610.0,117600.0,1.44513226]
[1753827516894,0.688681,117610.0,117600.0,1.49462226]
[1753827517706,0.688681,117610.0,117600.0,0.83737226]
[1753827517907,0.1701054,117600.0,117590.0,1.43502149]
[1753827518105,0.93260246,117600.0,117590.0,1.86396]
[1753827518299,0.93260246,117600.0,117590.0,0.68768]
[1753827518494,0.32712,117590.0,117580.0,0.79956386]
[1753827518704,0.68671,117590.0,117580.0,1.56060386]
[1753827519202,0.68671,117590.0,117580.0,1.51807126]
[1753827519409,0.95261706,117590.0,117580.0,0.12949]
[1753827519593,1.12270506,117590.0,117580.0,0.68764]
[1753827520001,0.2813544,117580.0,117570.0,0.10688246]
[1753827520204,0.95263146,117580.0,117570.0,0.10688246]
[1753827520504,0.95263146,117580.0,117570.0,0.95350706]
[1753827520705,1.03220953,117580.0,117570.0,0.95350706]
[1753827520907,0.76630247,117580.0,117570.0,1.009]
[1753827521508,0.76630247,117580.0,117570.0,1.012]
[1753827522915,0.76530247,117580.0,117570.0,1.012]
[1753827524317,0.76530247,117580.0,117570.0,1.06254]
[1753827525106,0.75423082,117580.0,117570.0,1.06254]
[1753827526017,0.76525017,117580.0,117570.0,1.06254]
[1753827529122,0.76525017,117580.0,117570.0,1.2326889]
[1753827530919,0.76525017,117580.0,117570.0,1.06254]
[1753827542737,1.03139126,117580.0,117570.0,1.32868109]
[1753827543037,1.03139126,117580.0,117570.0,0.94751]
[1753827543225,1.03139126,117580.0,117570.0,1.01741]
[1753827543628,1.03139126,117580.0,117570.0,1.33209109]
[1753827545827,1.03139126,117580.0,117570.0,1.06595]
[1753827546028,1.03139126,117580.0,117570.0,1.33209109]
[1753827549646,1.03139126,117580.0,117570.0,1.33009109]
[1753827549838,1.02037191,117580.0,117570.0,1.33009109]
[1753827550242,1.02037191,117580.0,117570.0,1.32809109]
[1753827550541,1.02037191,117580.0,117570.0,1.32909109]
[1753827552445,0.75423082,117580.0,117570.0,1.32909109]
[1753827552642,1.02037191,117580.0,117570.0,1.32909109]
[1753827559950,0.75423082,117580.0,117570.0,1.32909109]
[1753827560138,1.02037191,117580.0,117570.0,1.32909109]
[1753827561352,1.04253113,117580.0,117570.0,1.32909109]
[1753827567257,1.02037191,117580.0,117570.0,1.32909109]
[1753827568859,0.75423082,117580.0,117570.0,1.32909109]
[1753827569055,1.02037191,117580.0,117570.0,1.32909109]
[1753827571253,0.75423082,117580.0,117570.0,1.32909109]
[1753827571455,1.02037191,117580.0,117570.0,1.32909109]
[1753827573856,0.35764082,117580.0,117570.0,2.9170917]
[1753827574060,0.2881344,117580.0,117570.0,2.9170917]
[1753827584678,0.2881344,117580.0,117570.0,2.76538098]
[1753827585380,0.12,117580.0,117570.0,2.76538098]
[1753827585781,0.12,117580.0,117570.0,2.9170917]
[1753827586287,0.2901343,117580.0,117570.0,2.9170917]
[1753827587683,0.12,117580.0,117570.0,2.9170917]
[1753827587881,0.2901343,117580.0,117570.0,2.9170917]
[1753827592388,0.12,117580.0,117570.0,2.9170917]
[1753827593190,0.12,117580.0,117570.0,3.18323279]
[1753827593389,0.12,117580.0,117570.0,2.9170917]
[1753827599596,0.12,117580.0,117570.0,3.18323279]
[1753827601792,0.12,117580.0,117570.0,4.35975279]
[1753827602488,0.3926171,117610.0,117600.0,0.3307453]
[1753827602693,0.16176,117610.0,117600.0,1.78698748]
[1753827602893,0.3803709,117610.0,117600.0,2.78698748]
[1753827603196,0.3803709,117610.0,117600.0,2.79733363]
[1753827603597,0.5019709,117610.0,117600.0,2.79733363]
[1753827603893,0.5486709,117610.0,117600.0,2.79733363]
[1753827604093,0.6254509,117610.0,117600.0,2.79733363]
[1753827604289,0.7011309,117610.0,117600.0,2.79733363]
[1753827604796,0.7031309,117610.0,117600.0,2.79733363]
[1753827605192,0.7001309,117610.0,117600.0,2.79733363]
[1753827605391,0.6981309,117610.0,117600.0,2.79733363]
[1753827607199,0.6981309,117610.0,117600.0,2.78698748]
[1753827611197,0.6981309,117610.0,117600.0,2.79713053]
[1753827611497,0.6981309,117610.0,117600.0,2.78698748]
[1753827613300,0.13,117610.0,117600.0,2.78698748]
[1753827613502,0.3000908,117610.0,117600.0,2.78698748]
[1753827614503,0.3000908,117610.0,117600.0,2.79707564]
[1753827616805,0.13,117610.0,117600.0,2.79707564]
[1753827617002,0.3000907,117610.0,117600.0,2.79707564]
[1753827617505,0.13,117610.0,117600.0,2.79707564]
[1753827617901,0.13,117610.0,117600.0,3.06321673]
[1753827618100,0.0888355,117630.0,117600.0,2.89311143]
[1753827618306,0.0888355,117630.0,117620.0,1.09805848]
[1753827618307,0.7317614,117630.0,117620.0,1.09805848]
[1753827618506,0.7317614,117630.0,117620.0,1.78345848]
[1753827619611,0.7317614,117630.0,117620.0,1.51731739]
[1753827620505,0.3346814,117630.0,117620.0,1.51731739]
[1753827620705,0.3809014,117630.0,117620.0,1.78345848]
[1753827620905,0.5824814,117630.0,117620.0,1.48745659]
[1753827621109,0.7347614,117630.0,117620.0,1.48745659]
[1753827625818,0.1231,117630.0,117620.0,2.50436514]
[1753827626112,0.5551588,117660.0,117640.0,0.2218314]
[1753827626316,0.7316088,117660.0,117650.0,1.00247649]
[1753827628222,0.7316088,117660.0,117650.0,0.8551931]
[1753827630722,0.7316088,117660.0,117650.0,1.09147339]
[1753827631328,0.7326088,117660.0,117650.0,1.09147339]
[1753827631729,0.7326088,117660.0,117650.0,0.8551931]
[1753827631929,0.7326088,117660.0,117650.0,1.09147339]
[1753827636331,0.7326088,117660.0,117650.0,0.8549131]
[1753827636629,0.7326088,117660.0,117650.0,1.09119339]
[1753827638031,0.7326088,117660.0,117650.0,0.8549131]
[1753827638229,0.7326088,117660.0,117650.0,1.09119339]
[1753827639330,0.7326088,117660.0,117650.0,0.8549131]
[1753827639529,0.7326088,117660.0,117650.0,1.09119339]
[1753827644928,0.7326088,117660.0,117650.0,0.8549131]
[1753827645128,0.7326088,117660.0,117650.0,1.09119339]
[1753827646132,0.7326088,117660.0,117650.0,0.8549131]
[1753827646637,0.7326088,117660.0,117650.0,1.09119339]
[1753827652231,0.337244,117660.0,117650.0,1.09119339]
[1753827652432,0.121,117660.0,117650.0,2.09119339]
[1753827652636,0.121,117660.0,117650.0,2.1081962]
[1753827653036,0.121,117660.0,117650.0,2.2781882]
[1753827654235,0.2195799,117680.0,117650.0,2.1506614]
[1753827654432,0.3495799,117680.0,117670.0,0.17635657]
[1753827654632,0.3495799,117680.0,117670.0,1.1078994]
[1753827654834,0.3495799,117680.0,117670.0,2.1078994]
[1753827655336,0.4753499,117680.0,117670.0,2.1078994]
[1753827655537,0.5556299,117680.0,117670.0,2.1078994]
[1753827655734,0.6974599,117680.0,117670.0,1.87157911]
[1753827655929,0.7004599,117680.0,117670.0,1.87157911]
[1753827658640,0.7004599,117680.0,117670.0,1.9399233]
[1753827661443,0.93674019,117680.0,117670.0,0.0853992]
[1753827661640,0.5674886,117660.0,117650.0,0.27204271]
[1753827661940,0.91376889,117660.0,117650.0,0.87135591]
[1753827662645,0.91376889,117660.0,117650.0,0.18703591]
[1753827662844,0.91376889,117660.0,117650.0,0.87135591]
[1753827663242,0.6774886,117660.0,117650.0,0.87135591]
[1753827663442,0.91376889,117660.0,117650.0,0.87135591]
[1753827664344,0.6774886,117660.0,117650.0,0.87135591]
[1753827664541,0.6094186,117660.0,117650.0,1.1076362]
[1753827664743,0.6104186,117660.0,117650.0,1.1076362]
[1753827664940,0.6784886,117660.0,117650.0,2.1076362]
[1753827665137,0.16059,117660.0,117650.0,2.1076362]
[1753827665643,0.15959,117660.0,117650.0,2.1076362]
[1753827666046,0.16059,117660.0,117650.0,2.1076362]
[1753827666648,0.15959,117660.0,117650.0,2.1076362]
[1753827666850,0.3296086,117660.0,117650.0,2.1076362]
[1753827669147,0.15959,117660.0,117650.0,2.1076362]
[1753827670048,0.6037286,117660.0,117650.0,2.1076362]
[1753827670243,0.6774886,117660.0,117650.0,2.1076362]
[1753827670749,0.6774886,117660.0,117650.0,2.1075562]
[1753827671049,0.6774886,117660.0,117650.0,1.87127591]
[1753827672454,0.6774886,117660.0,117650.0,2.1075562]
[1753827673752,0.6774886,117660.0,117650.0,2.1084362]
[1753827680263,0.6774886,117660.0,117650.0,2.1083162]
[1753827680459,0.6774886,117660.0,117650.0,2.1082762]
[1753827684367,0.6774886,117660.0,117650.0,1.1082762]
[1753827684667,0.6774886,117660.0,117650.0,2.1082762]
[1753827690362,0.6774886,117660.0,117650.0,3.2840362]
[1753827698480,0.6774886,117660.0,117650.0,3.2837962]
[1753827702782,0.11,117660.0,117650.0,3.2837962]
[1753827702977,0.2800186,117660.0,117650.0,3.2837962]
[1753827703184,0.3252286,117660.0,117650.0,3.2837962]
[1753827704081,0.3252286,117660.0,117650.0,3.39067866]
[1753827704990,0.3252286,117660.0,117650.0,3.39267866]
[1753827705484,0.3252286,117660.0,117650.0,3.39367866]
[1753827710788,0.3252286,117660.0,117650.0,3.42307182]
[1753827713592,0.5321186,117660.0,117650.0,3.42307182]
[1753827713898,0.6905686,117660.0,117650.0,3.42307182]
[1753827714098,0.6905686,117660.0,117650.0,2.47355837]
[1753827714398,1.2219155,117660.0,117650.0,1.36667591]
[1753827714599,0.95624205,117660.0,117650.0,2.05015591]
[1753827715495,0.95724205,117660.0,117650.0,2.04715591]
[1753827715701,0.95824205,117660.0,117650.0,1.36367591]
[1753827715904,1.2239155,117660.0,117650.0,0.70044281]
[1753827716602,0.95824205,117660.0,117650.0,0.70044281]
[1753827716800,0.92882286,117660.0,117650.0,0.70044281]
[1753827717799,0.92882286,117660.0,117650.0,0.87047581]
[1753827720801,0.5839075,117640.0,117630.0,0.2975927]
[1753827721000,0.7039075,117640.0,117630.0,0.1700499]
[1753827721308,0.5839219,117630.0,117620.0,1.49028765]
[1753827721599,0.6939219,117630.0,117620.0,2.14091801]
[1753827722000,0.6939219,117630.0,117620.0,1.45755801]
[1753827722302,0.6909219,117630.0,117620.0,2.08860965]
[1753827722504,0.6909219,117630.0,117620.0,1.36273295]
[1753827722703,0.6909219,117630.0,117620.0,2.04609295]
[1753827723003,0.6909219,117630.0,117620.0,2.04909295]
[1753827723412,0.6919219,117630.0,117620.0,2.04609295]
[1753827723705,0.6919219,117630.0,117620.0,2.04809295]
[1753827724204,0.6919219,117630.0,117620.0,2.05765347]
[1753827724404,0.6919219,117630.0,117620.0,2.04609295]
[1753827724702,0.6929219,117630.0,117620.0,2.04609295]
[1753827727504,0.6929219,117630.0,117620.0,2.05584557]
[1753827728196,0.6929219,117630.0,117620.0,2.04609295]
[1753827729009,0.3275819,117630.0,117620.0,2.04609295]
[1753827729206,0.3275819,117630.0,117620.0,2.28234721]
[1753827729697,0.4070919,117630.0,117620.0,2.28234721]
[1753827729898,0.6929219,117630.0,117620.0,2.04609295]
[1753827730397,0.6919219,117630.0,117620.0,2.04609295]
[1753827731304,0.6929219,117630.0,117620.0,2.04609295]
[1753827745109,0.6919219,117630.0,117620.0,2.04609295]
[1753827746014,0.2780619,117630.0,117620.0,2.04609295]
[1753827746311,0.3269319,117630.0,117620.0,2.04609295]
[1753827746501,0.3269319,117630.0,117620.0,2.0291844]
[1753827747009,0.3269319,117630.0,117620.0,2.29501705]
[1753827747010,0.80302455,117630.0,117620.0,2.29501705]
[1753827747209,0.95728455,117630.0,117620.0,2.29501705]
[1753827747411,0.6914519,117630.0,117620.0,2.29501705]
[1753827747715,0.6914519,117630.0,117620.0,2.0291844]
[1753827747716,0.95728455,117630.0,117620.0,2.0291844]
[1753827747916,0.95728455,117630.0,117620.0,2.29501705]
[1753827748514,0.6914519,117630.0,117620.0,2.29501705]
[1753827748716,0.95728455,117630.0,117620.0,2.29501705]
[1753827749015,0.95728455,117630.0,117620.0,2.0291844]
[1753827749313,0.95728455,117630.0,117620.0,2.29501705]
[1753827760626,0.95728455,117630.0,117620.0,1.11925705]
[1753827761929,0.95728455,117630.0,117620.0,1.22613951]
[1753827766535,0.95728455,117630.0,117620.0,0.96030686]
[1753827766731,0.95728455,117630.0,117620.0,1.22613951]
[1753827769135,0.95728455,117630.0,117620.0,1.11925705]
[1753827769436,0.95728455,117630.0,117620.0,0.8534244]
[1753827769833,0.95728455,117630.0,117620.0,1.11925705]
[1753827770128,0.95728455,117630.0,117620.0,0.8534244]
[1753827770740,0.95728455,117630.0,117620.0,0.96030686]
[1753827771537,0.95728455,117630.0,117620.0,1.22613951]
[1753827775840,0.95728455,117630.0,117620.0,0.54277951]
[1753827776042,0.95728455,117630.0,117620.0,1.22525951]
[1753827779149,0.95728455,117630.0,117620.0,1.11837705]
[1753827782248,0.6914519,117630.0,117620.0,1.11837705]
[1753827782450,0.95728455,117630.0,117620.0,1.11837705]
[1753827785147,0.11,117630.0,117620.0,2.3842097]
[1753827785650,0.15962,117630.0,117620.0,2.11837705]
[1753827786351,0.15962,117630.0,117620.0,2.11937705]
[1753827788152,0.15962,117630.0,117620.0,2.12037705]
[1753827790353,0.329682,117630.0,117620.0,2.12037705]
[1753827791057,0.15962,117630.0,117620.0,2.12037705]
[1753827793859,0.3296819,117630.0,117620.0,2.12037705]
[1753827794055,0.3296819,117630.0,117620.0,1.8545444]
[1753827794260,0.94894455,117630.0,117620.0,0.8541844]
[1753827794760,0.94894455,117630.0,117620.0,0.1720644]
[1753827794962,1.2147772,117630.0,117620.0,0.002]
[1753827795558,1.2147772,117630.0,117620.0,0.68408]
[1753827795762,1.2147772,117630.0,117620.0,0.68308]
[1753827795963,1.2147772,117630.0,117620.0,0.68208]
[1753827796564,1.2167772,117630.0,117620.0,0.68208]
[1753827797362,0.95094455,117630.0,117620.0,0.8521563]
[1753827799666,0.95194455,117630.0,117620.0,0.8521563]
[1753827804170,0.6861119,117630.0,117620.0,0.8521563]
[1753827804374,0.95194455,117630.0,117620.0,0.8521563]
[1753827805466,0.95194455,117630.0,117620.0,0.8520963]
[1753827809868,0.6180319,117630.0,117620.0,2.11792895]
[1753827810173,0.6903319,117630.0,117620.0,2.11792895]
[1753827811166,0.6903319,117630.0,117620.0,1.8520963]
[1753827811371,0.95516455,117630.0,117620.0,1.8520963]
[1753827811673,0.95516455,117630.0,117620.0,2.11792895]
[1753827814373,0.95316455,117630.0,117620.0,2.11792895]
[1753827815075,0.95316455,117630.0,117620.0,1.1700763]
[1753827815271,0.5754961,117620.0,117610.0,0.27939256]
[1753827815574,0.95132875,117620.0,117610.0,0.91863026]
[1753827816073,0.95132875,117620.0,117610.0,0.91863806]
[1753827817275,0.6854961,117620.0,117610.0,1.18447071]
[1753827817475,0.95132875,117620.0,117610.0,1.18447071]
[1753827818776,0.6854961,117620.0,117610.0,0.91863806]
[1753827824878,0.3292261,117620.0,117610.0,2.15499977]
[1753827825079,0.11,117620.0,117610.0,2.15499977]
[1753827825272,0.11,117620.0,117610.0,2.32504777]
[1753827826590,0.11,117620.0,117610.0,2.32604777]
[1753827827586,0.11,117620.0,117610.0,2.32804777]
[1753827829288,0.11,117620.0,117610.0,2.09168606]
[1753827829489,0.15915,117620.0,117610.0,2.32804777]
[1753827830592,0.15915,117620.0,117610.0,2.15799977]
[1753827831093,0.6826661,117620.0,117610.0,1.23987806]
[1753827831283,0.6826661,117620.0,117610.0,2.15775977]
[1753827831483,0.91902781,117620.0,117610.0,1.92135806]
[1753827831688,0.6826661,117620.0,117610.0,1.92135806]
[1753827832891,0.6826661,117620.0,117610.0,1.92035806]
[1753827834084,0.6826661,117620.0,117610.0,1.91835806]